fUST/lending_fUST_20241220
["ID","MTS","AMOUNT","RATE_DAILY","PERIOD"]
[346075242,1734693067152,-772.83,0.00022465,6]
[346075243,1734693067161,-933.46,0.00022465,6]
[346075244,1734693067171,-506.6108973,0.00022465,6]
[346075245,1734693067330,-500.0,0.00022465,6]
[346075246,1734693067340,-727.74,0.00022465,6]
[346075247,1734693067350,-500.0,0.00022465,6]
[346075248,1734693067360,-1507.13,0.00022465,6]
[346075249,1734693067369,-628.91,0.00022465,6]
[346075250,1734693067379,-500.0,0.00022465,6]
[346075251,1734693067388,-500.0,0.00022465,6]
[346075252,1734693067397,-1026.99,0.00022465,6]
[346075253,1734693067407,-20507.92,0.00022465,6]
[346075254,1734693067418,-1914.41,0.00022465,6]
[346075255,1734693067427,-500.0,0.00022465,6]
[346075256,1734693067441,-945.69,0.00022465,6]
[346075257,1734693067450,-769.8,0.00022465,6]
[346075258,1734693067461,-31690.43,0.00022465,6]
[346075259,1734693067470,-500.0,0.00022465,6]
[346075260,1734693067480,-10891.37,0.00022465,6]
[346075261,1734693067492,-500.0,0.00022465,6]
[346075262,1734693067501,-500.0,0.00022465,6]
[346075263,1734693067511,-1881.92,0.00022465,6]
[346075264,1734693067520,-551.82,0.00022465,6]
[346075265,1734693067530,-500.0,0.00022465,6]
[346075266,1734693067539,-500.0,0.00022465,6]
[346075267,1734693067548,-741.52,0.00022465,6]
[346075268,1734693067557,-739.27,0.00022465,6]
[346075269,1734693067567,-500.0,0.00022465,6]
[346075270,1734693067577,-599.48,0.00022465,6]
[346075271,1734693067587,-151.0,0.00022465,7]
[346075272,1734693067595,-151.0,0.00022465,7]
[346075273,1734693067604,-674.12,0.00022465,6]
[346075274,1734693067614,-500.0,0.00022465,6]
[346075275,1734693067623,-500.0,0.00022465,6]
[346075276,1734693067632,-1525.74,0.00022465,6]
[346075277,1734693067642,-82254.19,0.00022465,6]
[346075278,1734693067651,-5572.46,0.00022465,6]
[346075279,1734693067660,-500.0,0.00022465,6]
[346075280,1734693067669,-500.0,0.00022465,6]
[346075281,1734693067679,-730.97,0.00022465,6]
[346075282,1734693067690,-623.84,0.00022465,6]
[346075283,1734693067699,-500.0,0.00022465,6]
[346075284,1734693067709,-12564.99,0.00022465,6]
[346075285,1734693067719,-502.05484511,0.00022465,6]
[346075286,1734693067728,-500.0,0.00022465,6]
[346075287,1734693067737,-734.96,0.00022465,6]
[346075288,1734693067746,-500.0,0.00022465,6]
[346075289,1734693067756,-774.73,0.00022465,6]
[346075290,1734693067765,-5780.94,0.00022465,6]
[346075291,1734693067774,-836.63,0.00022465,6]
[346075292,1734693067783,-500.0,0.00022465,6]
[346075293,1734693067792,-470.11957516,0.00022465,6]
[346075294,1734693067803,-500.0,0.00022465,6]
[346075295,1734693067814,-527.3,0.00022465,6]
[346075296,1734693067823,-5039.08,0.00022465,6]
[346075297,1734693067833,-500.0,0.00022465,6]
[346075298,1734693067842,-500.0,0.00022465,6]
[346075299,1734693067851,-2098.69,0.00022465,6]
[346075300,1734693067860,-1080.46,0.00022465,6]
[346075301,1734693067868,-648.6,0.00022465,6]
[346075302,1734693067878,-603.16,0.00022465,6]
[346075303,1734693067887,-500.0,0.00022465,6]
[346075304,1734693067896,-4746.74,0.00022465,6]
[346075305,1734693067906,-500.0,0.00022465,6]
[346075306,1734693067915,-3087.43,0.00022465,6]
[346075307,1734693067925,-1141.775585,0.00022465,7]
[346075308,1734693067934,-501.84,0.00022465,6]
[346075309,1734693067947,-1141.775585,0.00022465,7]
[346075310,1734693067956,-895.12,0.00022465,6]
[346075311,1734693067965,-500.0,0.00022465,6]
[346075312,1734693067975,-1141.775585,0.00022465,7]
[346075313,1734693067984,-1141.775585,0.00022465,7]
[346075314,1734693067993,-906.86,0.00022465,6]
[346075315,1734693068003,-500.0,0.00022465,6]
[346075316,1734693068012,-645.86,0.00022465,6]
[346075317,1734693068021,-796.51,0.00022465,6]
[346075318,1734693068031,-4289.65,0.00022465,6]
[346075319,1734693068041,-1129.09,0.00022465,6]
[346075320,1734693068050,-641.11,0.00022465,6]
[346075321,1734693068060,-1127.64,0.00022465,6]
[346075322,1734693068071,-31466.27,0.00022465,6]
[346075323,1734693068080,-797.8,0.00022465,6]
[346075324,1734693068090,-500.0,0.00022465,6]
[346075325,1734693068099,-500.0,0.00022465,6]
[346075326,1734693068109,-500.0,0.00022465,6]
[346075327,1734693068119,-500.0,0.00022465,6]
[346075328,1734693068128,-507.72853464,0.00022465,6]
[346075329,1734693068138,-254.34464,0.00022465,7]
[346075330,1734693068148,-996.74,0.00022465,6]
[346075331,1734693068158,-500.0,0.00022465,6]
[346075332,1734693068167,-500.0,0.00022465,6]
[346075333,1734693068177,-500.0,0.00022465,6]
[346075334,1734693068192,-1422.15,0.00022465,6]
[346075335,1734693068202,-500.0,0.00022465,6]
[346075336,1734693068211,-1104.77,0.00022465,6]
[346075337,1734693068221,-500.0,0.00022465,6]
[346075338,1734693068231,-505.39,0.00022465,6]
[346075339,1734693068241,-7845.89,0.00022465,6]
[346075340,1734693068251,-439.2640676,0.00022465,6]
[346075341,1734693068260,-4838.119892,0.00022465,7]
[346075342,1734693068269,-4838.119892,0.00022465,7]
[346075343,1734693068279,-953.99,0.00022465,6]
[346075344,1734693068289,-500.0,0.00022465,6]
[346075345,1734693068298,-500.0,0.00022465,6]
[346075346,1734693068307,-4838.119892,0.00022465,7]
[346075347,1734693068317,-4838.119892,0.00022465,7]
[346075348,1734693068326,-4901.08,0.00022465,6]
[346075349,1734693068336,-1667.65,0.00022465,6]
[346075350,1734693068345,-500.0,0.00022465,6]
[346075351,1734693068354,-500.0,0.00022465,6]
[346075352,1734693068364,-500.0,0.00022465,6]
[346075353,1734693068373,-500.0,0.00022465,6]
[346075354,1734693068384,-500.0,0.00022465,6]
[346075355,1734693068393,-989.18,0.00022465,6]
[346075356,1734693068404,-151.0,0.00022465,7]
[346075357,1734693068416,-151.0,0.00022465,7]
[346075358,1734693068426,-500.0,0.00022465,6]
[346075359,1734693068438,-871.64,0.00022465,6]
[346075360,1734693068449,-4701.04,0.00022465,6]
[346075361,1734693068459,-151.0,0.00022465,7]
[346075362,1734693068468,-151.0,0.00022465,7]
[346075363,1734693068477,-1915.75,0.00022465,6]
[346075364,1734693068487,-500.0,0.00022465,6]
[346075365,1734693068499,-10035.19,0.00022465,6]
[346075366,1734693068509,-500.0,0.00022465,6]
[346075367,1734693068518,-1877.64,0.00022465,6]
[346075368,1734693068527,-7749.62,0.00022465,6]
[346075369,1734693068537,-1244.76,0.00022465,2]
[346075370,1734693068547,-335.036907,0.00022465,7]
[346075371,1734693068557,-335.036907,0.00022465,7]
[346075372,1734693068567,-500.0,0.00022465,6]
[346075373,1734693068577,-500.0,0.00022465,6]
[346075374,1734693068586,-2173.89,0.00022465,6]
[346075375,1734693068596,-5377.96,0.00022465,6]
[346075376,1734693068605,-2633.81,0.00022465,6]
[346075377,1734693068615,-335.036907,0.00022465,7]
[346075378,1734693068624,-335.036907,0.00022465,7]
[346075379,1734693068634,-2682.03,0.00022465,6]
[346075380,1734693068643,-500.0,0.00022465,6]
[346075381,1734693068652,-500.0,0.00022465,6]
[346075382,1734693068662,-151.386173,0.00022465,7]
[346075383,1734693068671,-500.0,0.00022465,6]
[346075384,1734693068680,-500.0,0.00022465,6]
[346075385,1734693068692,-151.386173,0.00022465,7]
[346075386,1734693068702,-151.0,0.00022465,7]
[346075387,1734693068711,-500.0,0.00022465,6]
[346075388,1734693068721,-500.0,0.00022465,6]
[346075389,1734693068730,-568.8,0.00022465,6]
[346075390,1734693068740,-500.0,0.00022465,6]
[346075391,1734693068749,-151.386173,0.00022465,7]
[346075392,1734693068758,-1371.8,0.00022465,6]
[346075393,1734693068768,-151.386173,0.00022465,7]
[346075394,1734693068777,-151.0,0.00022465,7]
[346075395,1734693068786,-500.0,0.00022465,6]
[346075396,1734693068796,-151.0,0.00022465,7]
[346075397,1734693068805,-246.329835,0.00022465,7]
[346075398,1734693068815,-246.329835,0.00022465,7]
[346075399,1734693068823,-500.0,0.00022465,6]
[346075400,1734693068833,-500.0,0.00022465,6]
[346075401,1734693068842,-4069.31,0.00022465,6]
[346075402,1734693068851,-500.0,0.00022465,6]
[346075403,1734693068860,-4673.27,0.00022465,6]
[346075404,1734693068870,-246.329835,0.00022465,7]
[346075405,1734693068879,-500.0,0.00022465,6]
[346075406,1734693068889,-246.329835,0.00022465,7]
[346075407,1734693068898,-566.02,0.00022465,6]
[346075408,1734693068907,-2791.17,0.00022465,6]
[346075409,1734693068916,-503.87,0.00022465,6]
[346075410,1734693068926,-1647.66,0.00022465,6]
[346075411,1734693068935,-500.0,0.00022465,6]
[346075412,1734693068948,-500.0,0.00022465,6]
[346075413,1734693068957,-500.0,0.00022465,6]
[346075414,1734693068966,-650.66,0.00022465,6]
[346075415,1734693068975,-2005.93,0.00022465,6]
[346075416,1734693068984,-500.0,0.00022465,6]
[346075417,1734693068994,-537.75,0.00022465,6]
[346075418,1734693069003,-1424.07,0.00022465,6]
[346075419,1734693069012,-500.0,0.00022465,6]
[346075420,1734693069021,-907.39,0.00022465,6]
[346075421,1734693069031,-283.55658351,0.00022465,6]
[346075422,1734693069040,-1508.58,0.00022465,6]
[346075423,1734693069050,-500.0,0.00022465,2]
[346075424,1734693069060,-668.4,0.00022465,6]
[346075425,1734693069069,-500.0,0.00022465,6]
[346075426,1734693069079,-564.28,0.00022465,6]
[346075427,1734693069088,-500.0,0.00022465,6]
[346075428,1734693069098,-1278.74,0.00022465,6]
[346075429,1734693069107,-800.05,0.00022465,6]
[346075430,1734693069116,-2906.3,0.00022465,6]
[346075431,1734693069125,-500.0,0.00022465,6]
[346075432,1734693069135,-500.0,0.00022465,2]
[346075433,1734693069145,-519.11730433,0.00022465,6]
[346075434,1734693069155,-500.0,0.00022465,6]
[346075435,1734693069164,-1066.82,0.00022465,6]
[346075436,1734693069174,-4154.09,0.00022465,6]
[346075437,1734693069183,-2034.35,0.00022465,6]
[346075438,1734693069198,-500.0,0.00022473,2]
[346075439,1734693069208,-500.0,0.00022473,2]
[346075440,1734693069217,-514.16945605,0.00022473,2]
[346075441,1734693069227,-500.0,0.00022473,2]
[346075442,1734693069236,-565.63162151,0.00022473,2]
[346075443,1734693069246,-427.41251587,0.00022473,2]
[346075444,1734693069256,-162.087698,0.00022473,7]
[346075445,1734693069264,-162.087698,0.00022473,7]
[346075446,1734693069274,-151.0,0.00022473,7]
[346075447,1734693069283,-1079.40644,0.00022473,7]
[346075448,1734693069293,-1079.40644,0.00022473,7]
[346075449,1734693069302,-681.759088,0.00022473,7]
[346075450,1734693069312,-681.759088,0.00022473,7]
[346075451,1734693069321,-1480.54287505,0.00022479,2]
[346075452,1734693069330,-156.44854133,0.00022493,2]
[346075453,1734693069340,-2000.0,0.000225,2]
[346075454,1734693069349,-1000.0,0.00022521,2]
[346075455,1734693069358,-1000.0,0.00022521,2]
[346075456,1734693069367,-1000.0,0.00022521,2]
[346075457,1734693069379,-1000.0,0.00022521,2]
[346075458,1734693069388,-1000.0,0.00022521,2]
[346075459,1734693069398,-1000.0,0.00022521,2]
[346075460,1734693069407,-1000.0,0.00022521,2]
[346075461,1734693069420,-1000.0,0.00022521,2]
[346075462,1734693069429,-151.0,0.00022554,6]
[346075463,1734693069440,-459.1243336,0.0002263,2]
[346075464,1734693069449,-491.8226511,0.0002263,2]
[346075465,1734693069461,-885.77216834,0.00022638,7]
[346075466,1734693069470,-151.0,0.00022709,6]
[346075467,1734693069479,-1000.0,0.00022721,2]
[346075468,1734693069488,-664.8223665,0.00022721,2]
[346075469,1734693069497,-1262.667456,0.00022738,7]
[346075470,1734693069507,-219.953452,0.00022739,7]
[346075471,1734693069516,-175.828364,0.00022739,7]
[346075472,1734693069525,-151.0,0.00022739,7]
[346075473,1734693069535,-151.0,0.00022739,7]
[346075474,1734693069544,-151.0,0.00022739,7]
[346075475,1734693069553,-151.0,0.00022739,7]
[346075476,1734693069562,-500.0,0.00022739,6]
[346075477,1734693069571,-151.0,0.00022739,7]
[346075478,1734693069580,-151.0,0.00022739,7]
[346075479,1734693069590,-151.0,0.00022739,7]
[346075480,1734693069599,-151.0,0.00022739,7]
[346075481,1734693069608,-502.17866558,0.00022739,6]
[346075482,1734693069618,-504.63274669,0.00022739,6]
[346075483,1734693069627,-500.0,0.00022739,6]
[346075484,1734693069636,-500.0,0.00022739,6]
[346075485,1734693069645,-500.0,0.00022739,6]
[346075486,1734693069654,-500.0,0.00022739,6]
[346075487,1734693069663,-602.42,0.00022739,6]
[346075488,1734693069673,-500.0,0.00022739,6]
[346075489,1734693069682,-500.0,0.00022739,6]
[346075490,1734693069695,-500.0,0.00022739,6]
[346075491,1734693069704,-500.0,0.00022739,6]
[346075492,1734693069713,-1144.54,0.00022739,6]
[346075493,1734693069723,-1262.667456,0.00022739,7]
[346075494,1734693069733,-500.0,0.00022739,6]
[346075495,1734693069742,-500.0,0.00022739,6]
[346075496,1734693069751,-500.0,0.00022739,6]
[346075497,1734693069760,-502.23,0.00022739,6]
[346075498,1734693069769,-500.0,0.00022739,6]
[346075499,1734693069778,-500.0,0.00022739,6]
[346075500,1734693069787,-507.48090478,0.00022739,6]
[346075501,1734693069796,-500.0,0.00022739,6]
[346075502,1734693069805,-500.0,0.00022739,6]
[346075503,1734693069815,-500.0,0.00022739,6]
[346075504,1734693069823,-333.85818369,0.00022739,6]
[346075505,1734693069833,-500.0,0.00022739,6]
[346075506,1734693069842,-504.17,0.00022739,6]
[346075507,1734693069851,-500.0,0.00022739,6]
[346075508,1734693069860,-193.1250752,0.00022739,6]
[346075509,1734693069870,-649.76,0.00022739,6]
[346075510,1734693069879,-660.53,0.00022739,6]
[346075511,1734693069889,-500.0,0.00022739,6]
[346075512,1734693069898,-1017.84,0.00022739,6]
[346075513,1734693069907,-365.239564,0.00022739,7]
[346075514,1734693069916,-365.239564,0.00022739,7]
[346075515,1734693069926,-500.0,0.00022739,6]
[346075516,1734693069935,-508.38906482,0.00022739,6]
[346075517,1734693069954,-884.09,0.00022739,6]
[346075518,1734693069963,-365.239564,0.00022739,7]
[346075519,1734693069972,-365.239564,0.00022739,7]
[346075520,1734693069981,-500.0,0.00022739,6]
[346075521,1734693069990,-500.0,0.00022739,6]
[346075522,1734693069999,-308.6634314,0.00022739,6]
[346075523,1734693070009,-500.0,0.00022739,6]
[346075524,1734693070018,-339.519478,0.00022739,7]
[346075525,1734693070161,-339.519478,0.00022739,7]
[346075526,1734693070175,-339.519478,0.00022739,7]
[346075527,1734693070185,-500.0,0.00022739,6]
[346075528,1734693070196,-500.0,0.00022739,6]
[346075529,1734693070205,-339.519478,0.00022739,7]
[346075530,1734693070214,-500.0,0.00022739,6]
[346075531,1734693070223,-500.0,0.00022739,6]
[346075532,1734693070233,-500.0,0.00022739,6]
[346075533,1734693070243,-500.0,0.00022739,6]
[346075534,1734693070252,-500.0,0.00022739,6]
[346075535,1734693070261,-800.6,0.00022739,6]
[346075536,1734693070271,-634.34,0.00022739,6]
[346075537,1734693070280,-500.0,0.00022739,6]
[346075538,1734693070289,-957.36,0.00022739,6]
[346075539,1734693070298,-500.0,0.00022739,6]
[346075540,1734693070308,-500.0,0.00022739,6]
[346075541,1734693070317,-500.0,0.00022739,6]
[346075542,1734693070326,-500.0,0.00022739,6]
[346075543,1734693070335,-500.0,0.00022739,6]
[346075544,1734693070344,-500.0,0.00022739,6]
[346075545,1734693070354,-1728.45,0.00022739,6]
[346075546,1734693070363,-500.0,0.00022739,6]
[346075547,1734693070373,-500.0,0.00022739,6]
[346075548,1734693070383,-437.27524,0.00022739,7]
[346075549,1734693070392,-500.0,0.00022739,6]
[346075550,1734693070401,-437.27524,0.00022739,7]
[346075551,1734693070412,-508.35727902,0.00022739,6]
[346075552,1734693070423,-500.0,0.00022739,6]
[346075553,1734693070432,-500.0,0.00022739,6]
[346075554,1734693070443,-723.0,0.00022739,6]
[346075555,1734693070454,-1023.35,0.00022739,6]
[346075556,1734693070463,-565.08,0.00022739,6]
[346075557,1734693070473,-500.0,0.00022739,6]
[346075558,1734693070482,-500.0,0.00022739,6]
[346075559,1734693070493,-500.0,0.00022739,6]
[346075560,1734693070502,-4532.594349,0.00022739,7]
[346075561,1734693070512,-500.0,0.00022739,6]
[346075562,1734693070522,-500.0,0.00022739,6]
[346075563,1734693070531,-500.0,0.00022739,6]
[346075564,1734693070540,-500.0,0.00022739,6]
[346075565,1734693070549,-1199.17,0.00022739,6]
[346075566,1734693070559,-513.95807647,0.00022739,6]
[346075567,1734693070568,-500.0,0.00022739,6]
[346075568,1734693070577,-500.0,0.00022739,6]
[346075569,1734693070587,-500.0,0.00022739,6]
[346075570,1734693070596,-592.75,0.00022739,6]
[346075571,1734693070605,-500.0,0.00022739,6]
[346075572,1734693070615,-500.0,0.00022739,6]
[346075573,1734693070625,-500.0,0.00022739,6]
[346075574,1734693070634,-500.0,0.00022739,6]
[346075575,1734693070644,-765.62,0.00022739,6]
[346075576,1734693070654,-500.0,0.00022739,6]
[346075577,1734693070665,-500.0,0.00022739,6]
[346075578,1734693070675,-500.0,0.00022739,6]
[346075579,1734693070685,-1006.14,0.00022739,6]
[346075580,1734693070700,-500.0,0.00022739,6]
[346075581,1734693070711,-500.0,0.00022739,6]
[346075582,1734693070720,-887.36,0.00022739,6]
[346075583,1734693070730,-500.0,0.00022739,6]
[346075584,1734693070739,-500.0,0.00022739,6]
[346075585,1734693070748,-1902.09,0.00022739,6]
[346075586,1734693070757,-500.0,0.00022739,6]
[346075587,1734693070766,-1156.92,0.00022739,6]
[346075588,1734693070776,-500.0,0.00022739,6]
[346075589,1734693070785,-500.0,0.00022739,6]
[346075590,1734693070794,-208.099156,0.00022739,7]
[346075591,1734693070803,-208.099156,0.00022739,7]
[346075592,1734693070812,-500.0,0.00022739,6]
[346075593,1734693070821,-208.099156,0.00022739,7]
[346075594,1734693070830,-208.099156,0.00022739,7]
[346075595,1734693070839,-500.0,0.00022739,6]
[346075596,1734693070849,-500.0,0.00022739,6]
[346075597,1734693070858,-500.0,0.00022739,6]
[346075598,1734693070868,-500.0,0.00022739,6]
[346075599,1734693070878,-506.21,0.00022739,6]
[346075600,1734693070887,-538.01,0.00022739,6]
[346075601,1734693070896,-500.0,0.00022739,6]
[346075602,1734693070905,-1161.97,0.00022739,6]
[346075603,1734693070914,-151.0,0.00022739,7]
[346075604,1734693070923,-151.0,0.00022739,7]
[346075605,1734693070932,-500.0,0.00022739,6]
[346075606,1734693070945,-500.0,0.00022739,6]
[346075607,1734693070954,-164.928233,0.00022739,7]
[346075608,1734693070963,-500.0,0.00022739,6]
[346075609,1734693070972,-500.0,0.00022739,6]
[346075610,1734693070981,-500.0,0.00022739,6]
[346075611,1734693070990,-500.0,0.00022739,6]
[346075612,1734693071000,-902.08,0.00022739,6]
[346075613,1734693071009,-500.0,0.00022739,6]
[346075614,1734693071019,-500.0,0.00022739,6]
[346075615,1734693071028,-1667.53,0.00022739,6]
[346075616,1734693071037,-500.0,0.00022739,6]
[346075617,1734693071046,-500.0,0.00022739,6]
[346075618,1734693071055,-744.530375,0.00022739,7]
[346075619,1734693071064,-744.530375,0.00022739,7]
[346075620,1734693071073,-580.22,0.00022739,6]
[346075621,1734693071082,-1293.82,0.00022739,6]
[346075622,1734693071091,-500.0,0.00022739,6]
[346075623,1734693071101,-500.0,0.00022739,6]
[346075624,1734693071111,-500.0,0.00022739,6]
[346075625,1734693071120,-500.0,0.00022739,6]
[346075626,1734693071129,-1211.12,0.00022739,6]
[346075627,1734693071139,-500.0,0.00022739,6]
[346075628,1734693071148,-500.0,0.00022739,6]
[346075629,1734693071157,-500.0,0.00022739,6]
[346075630,1734693071167,-500.0,0.00022739,6]
[346075631,1734693071176,-510.23,0.00022739,6]
[346075632,1734693071186,-500.0,0.00022739,6]
[346075633,1734693071196,-988.28,0.00022739,6]
[346075634,1734693071206,-503.59345874,0.00022739,6]
[346075635,1734693071215,-2509.21,0.00022739,6]
[346075636,1734693071225,-1456.58,0.00022739,6]
[346075637,1734693071235,-664.27,0.00022739,6]
[346075638,1734693071244,-500.0,0.00022739,6]
[346075639,1734693071254,-1215.59,0.00022739,6]
[346075640,1734693071263,-1202.07,0.00022739,6]
[346075641,1734693071272,-500.0,0.00022739,6]
[346075642,1734693071281,-500.0,0.00022739,6]
[346075643,1734693071292,-500.0,0.00022739,6]
[346075644,1734693071303,-502.84413213,0.00022739,6]
[346075645,1734693071313,-500.0,0.00022739,6]
[346075646,1734693071323,-500.0,0.00022739,6]
[346075647,1734693071332,-500.0,0.00022739,6]
[346075648,1734693071341,-870.43,0.00022739,6]
[346075649,1734693071351,-500.0,0.00022739,6]
[346075650,1734693071360,-500.0,0.00022739,6]
[346075651,1734693071369,-204.98364625,0.00022739,6]
[346075652,1734693071378,-500.0,0.00022739,6]
[346075653,1734693071387,-500.0,0.00022739,6]
[346075654,1734693071396,-500.0,0.00022739,6]
[346075655,1734693071406,-500.0,0.00022739,6]
[346075656,1734693071417,-500.0,0.00022739,6]
[346075657,1734693071426,-514.36947612,0.00022739,6]
[346075658,1734693071435,-534.47,0.00022739,6]
[346075659,1734693071447,-500.0,0.00022739,6]
[346075660,1734693071459,-500.0,0.00022739,6]
[346075661,1734693071468,-500.0,0.00022739,6]
[346075662,1734693071477,-500.0,0.00022739,6]
[346075663,1734693071487,-258.234953,0.00022739,7]
[346075664,1734693071497,-151.0,0.00022739,7]
[346075665,1734693071507,-258.234953,0.00022739,7]
[346075666,1734693071516,-151.0,0.00022739,7]
[346075667,1734693071525,-500.0,0.00022739,6]
[346075668,1734693071534,-500.0,0.00022739,6]
[346075669,1734693071543,-258.234953,0.00022739,7]
[346075670,1734693071553,-258.234953,0.00022739,7]
[346075671,1734693071562,-500.0,0.00022739,6]
[346075672,1734693071571,-663.44,0.00022739,6]
[346075673,1734693071580,-644.54,0.00022739,6]
[346075674,1734693071589,-430.99068311,0.00022739,6]
[346075675,1734693071598,-506.86190818,0.00022739,6]
[346075676,1734693071607,-500.0,0.00022739,6]
[346075677,1734693071617,-192.90100646,0.00022739,6]
[346075678,1734693071626,-500.0,0.00022739,6]
[346075679,1734693071635,-500.0,0.00022739,6]
[346075680,1734693071644,-500.0,0.00022739,6]
[346075681,1734693071654,-200.0,0.00022739,6]
[346075682,1734693071663,-151.0,0.00022739,7]
[346075683,1734693071672,-152.151558,0.00022739,7]
[346075684,1734693071681,-500.0,0.00022739,6]
[346075685,1734693071692,-500.0,0.00022739,6]
[346075686,1734693071701,-500.0,0.00022739,6]
[346075687,1734693071710,-521.2398053,0.00022739,6]
[346075688,1734693071720,-500.0,0.00022739,6]
[346075689,1734693071729,-507.14469667,0.00022739,6]
[346075690,1734693071739,-3028.67,0.00022739,6]
[346075691,1734693071748,-500.0,0.00022739,6]
[346075692,1734693071758,-500.0,0.00022739,6]
[346075693,1734693071767,-662.01,0.00022739,6]
[346075694,1734693071776,-500.0,0.00022739,6]
[346075695,1734693071785,-500.0,0.00022739,6]
[346075696,1734693071794,-166.10727421,0.00022739,6]
[346075697,1734693071804,-500.0,0.00022739,6]
[346075698,1734693071813,-400.89,0.00022739,6]
[346075699,1734693071822,-500.0,0.00022739,6]
[346075700,1734693071831,-711.74,0.00022739,6]
[346075701,1734693071840,-500.0,0.00022739,6]
[346075702,1734693071850,-500.0,0.00022739,6]
[346075703,1734693071859,-554.08,0.00022739,6]
[346075704,1734693071868,-500.0,0.00022739,6]
[346075705,1734693071877,-645.88,0.00022739,6]
[346075706,1734693071886,-506.11414632,0.00022739,6]
[346075707,1734693071896,-500.0,0.00022739,6]
[346075708,1734693071905,-500.0,0.00022739,6]
[346075709,1734693071914,-500.0,0.00022739,6]
[346075710,1734693071924,-577.97,0.00022739,6]
[346075711,1734693071932,-500.0,0.00022739,6]
[346075712,1734693071946,-500.0,0.00022739,6]
[346075713,1734693071955,-1637.88,0.00022739,6]
[346075714,1734693071964,-554.51082628,0.00022739,6]
[346075715,1734693071973,-500.0,0.00022739,6]
[346075716,1734693071983,-778.88,0.00022739,6]
[346075717,1734693071992,-500.0,0.00022739,6]
[346075718,1734693072002,-2108.73,0.00022739,6]
[346075719,1734693072011,-642.6,0.00022739,6]
[346075720,1734693072021,-500.0,0.00022739,6]
[346075721,1734693072030,-500.0,0.00022739,6]
[346075722,1734693072039,-993.42,0.00022739,6]
[346075723,1734693072048,-413.026202,0.00022739,7]
[346075724,1734693072057,-413.026202,0.00022739,7]
[346075725,1734693072067,-500.0,0.00022739,6]
[346075726,1734693072076,-500.0,0.00022739,6]
[346075727,1734693072085,-503.71682771,0.00022739,6]
[346075728,1734693072094,-500.0,0.00022739,6]
[346075729,1734693072104,-500.0,0.00022739,6]
[346075730,1734693072113,-500.0,0.00022739,6]
[346075731,1734693072123,-413.026202,0.00022739,7]
[346075732,1734693072132,-413.026202,0.00022739,7]
[346075733,1734693072141,-1347.62,0.00022739,6]
[346075734,1734693072150,-1576.34,0.00022739,6]
[346075735,1734693072159,-500.0,0.00022739,6]
[346075736,1734693072168,-500.0,0.00022739,6]
[346075737,1734693072177,-559.19,0.00022739,6]
[346075738,1734693072186,-783.39,0.00022739,6]
[346075739,1734693072198,-502.1107285,0.00022739,6]
[346075740,1734693072207,-500.0,0.00022739,6]
[346075741,1734693072217,-500.0,0.00022739,6]